fUSD/lending_fUSD_20240115
["ID","MTS","AMOUNT","RATE_DAILY","PERIOD"]
[311701903,1705338666800,-608.16,0.0003315,4]
[311701904,1705338666849,-500.0,0.0003315,4]
[311701905,1705338666859,-234.55013655,0.0003315,4]
[311701906,1705338666868,-629.45,0.0003315,4]
[311701907,1705338666878,-500.0,0.0003315,4]
[311701908,1705338666887,-672.9,0.0003315,4]
[311701909,1705338666896,-500.0,0.0003315,4]
[311701910,1705338666906,-500.0,0.0003315,4]
[311701911,1705338666915,-500.0,0.0003315,4]
[311701912,1705338666925,-500.0,0.0003315,4]
[311701913,1705338666938,-500.0,0.0003315,4]
[311701914,1705338666949,-661.55,0.0003315,4]
[311701915,1705338666959,-500.0,0.0003315,4]
[311701916,1705338666969,-500.0,0.0003315,4]
[311701917,1705338666979,-500.0,0.0003315,4]
[311701918,1705338666989,-500.0,0.0003315,4]
[311701919,1705338666998,-500.0,0.0003315,4]
[311701920,1705338667008,-694.57,0.0003315,4]
[311701921,1705338667018,-500.0,0.0003315,4]
[311701922,1705338667028,-500.0,0.0003315,4]
[311701923,1705338667038,-500.0,0.0003315,4]
[311701924,1705338667047,-500.0,0.0003315,4]
[311701925,1705338667057,-930.65,0.0003315,4]
[311701926,1705338667066,-500.0,0.0003315,4]
[311701927,1705338667076,-500.0,0.0003315,4]
[311701928,1705338667087,-500.0,0.0003315,4]
[311701929,1705338667097,-500.0,0.0003315,4]
[311701930,1705338667107,-520.76204185,0.0003315,4]
[311701931,1705338667117,-500.0,0.0003315,4]
[311701932,1705338667126,-500.0,0.0003315,4]
[311701933,1705338667136,-500.0,0.0003315,4]
[311701934,1705338667146,-500.0,0.0003315,4]
[311701935,1705338667156,-500.0,0.0003315,4]
[311701936,1705338667165,-500.0,0.0003315,4]
[311701937,1705338667174,-500.0,0.0003315,4]
[311701938,1705338667184,-500.0,0.0003315,4]
[311701939,1705338667194,-500.0,0.0003315,4]
[311701940,1705338667203,-1414.83,0.0003315,4]
[311701941,1705338667213,-500.0,0.0003315,4]
[311701942,1705338667222,-549.29,0.0003315,4]
[311701943,1705338667232,-500.0,0.0003315,4]
[311701944,1705338667241,-500.0,0.0003315,4]
[311701945,1705338667251,-500.0,0.0003315,3]
[311701946,1705338667260,-500.0,0.0003315,4]
[311701947,1705338667270,-507.8539982,0.0003315,4]
[311701948,1705338667280,-627.36,0.0003315,4]
[311701949,1705338667290,-562.92,0.0003315,4]
[311701950,1705338667301,-500.0,0.0003315,4]
[311701951,1705338667310,-500.0,0.0003315,4]
[311701952,1705338667320,-500.0,0.0003315,4]
[311701953,1705338667330,-500.0,0.0003315,4]
[311701954,1705338667339,-984.71,0.0003315,4]
[311701955,1705338667349,-500.0,0.0003315,4]
[311701956,1705338667358,-500.0,0.0003315,4]
[311701957,1705338667368,-500.0,0.0003315,4]
[311701958,1705338667378,-635.41,0.0003315,4]
[311701959,1705338667387,-500.0,0.0003315,4]
[311701960,1705338667396,-663.5,0.0003315,4]
[311701961,1705338667405,-743.02,0.0003315,4]
[311701962,1705338667414,-500.0,0.0003315,4]
[311701963,1705338667424,-533.63,0.0003315,4]
[311701964,1705338667432,-500.0,0.0003315,4]
[311701965,1705338667442,-500.0,0.0003315,4]
[311701966,1705338667451,-500.0,0.0003315,4]
[311701967,1705338667460,-500.0,0.0003315,4]
[311701968,1705338667470,-500.0,0.0003315,4]
[311701969,1705338667479,-502.31323963,0.0003315,4]
[311701970,1705338667488,-349.04197836,0.0003315,7]
[311701971,1705338667498,-500.0,0.0003315,4]
[311701972,1705338667507,-500.0,0.0003315,4]
[311701973,1705338667516,-500.0,0.0003315,4]
[311701974,1705338667525,-634.9,0.0003315,4]
[311701975,1705338667535,-500.0,0.0003315,4]
[311701976,1705338667543,-500.0,0.0003315,4]
[311701977,1705338667553,-500.0,0.0003315,4]
[311701978,1705338667563,-503.50400507,0.0003315,4]
[311701979,1705338667572,-500.0,0.0003315,4]
[311701980,1705338667582,-500.0,0.0003315,4]
[311701981,1705338667591,-500.0,0.0003315,4]
[311701982,1705338667601,-500.0,0.0003315,4]
[311701983,1705338667610,-500.0,0.0003315,4]
[311701984,1705338667619,-610.7,0.0003315,4]
[311701985,1705338667628,-500.0,0.0003315,4]
[311701986,1705338667637,-1286.92,0.0003315,4]
[311701987,1705338667647,-500.0,0.0003315,4]
[311701988,1705338667656,-500.0,0.0003315,4]
[311701989,1705338667666,-500.0,0.0003315,4]
[311701990,1705338667676,-500.0,0.0003315,4]
[311701991,1705338667685,-500.0,0.0003315,4]
[311701992,1705338667694,-500.0,0.0003315,4]
[311701993,1705338667704,-500.0,0.0003315,2]
[311701994,1705338667713,-1379.94,0.0003315,4]
[311701995,1705338667724,-500.0,0.0003315,4]
[311701996,1705338667733,-500.0,0.0003315,4]
[311701997,1705338667743,-810.61,0.0003315,4]
[311701998,1705338667752,-500.0,0.0003315,4]
[311701999,1705338667761,-500.0,0.0003315,4]
[311702000,1705338667771,-500.0,0.0003315,4]
[311702001,1705338667780,-500.0,0.0003315,4]
[311702002,1705338667790,-1898.9,0.0003315,4]
[311702003,1705338667800,-500.0,0.0003315,4]
[311702004,1705338667809,-628.27,0.0003315,4]
[311702005,1705338667818,-540.93,0.0003315,4]
[311702006,1705338667827,-594.72,0.0003315,4]
[311702007,1705338667837,-500.0,0.0003315,4]
[311702008,1705338667846,-500.0,0.0003315,4]
[311702009,1705338667855,-857.01,0.0003315,4]
[311702010,1705338667865,-500.0,0.0003315,4]
[311702011,1705338667874,-500.0,0.0003315,4]
[311702012,1705338667884,-500.0,0.0003315,4]
[311702013,1705338667893,-593.6454795,0.0003315,4]
[311702014,1705338667903,-1237.62,0.0003315,4]
[311702015,1705338667912,-1000.0,0.0003315,4]
[311702016,1705338667922,-866.08,0.0003315,4]
[311702017,1705338667932,-500.0,0.0003315,4]
[311702018,1705338667942,-500.0,0.0003315,4]
[311702019,1705338667952,-500.0,0.0003315,4]
[311702020,1705338667962,-1034.2,0.0003315,4]
[311702021,1705338667971,-500.0,0.0003315,4]
[311702022,1705338667982,-1042.44,0.0003315,4]
[311702023,1705338667992,-247.14495174,0.0003315,4]
[311702024,1705338668002,-500.0,0.0003315,4]
[311702025,1705338668011,-648.09,0.0003315,4]
[311702026,1705338668021,-500.0,0.0003315,4]
[311702027,1705338668031,-500.0,0.0003315,4]
[311702028,1705338668040,-564.01,0.0003315,4]
[311702029,1705338668049,-500.0,0.0003315,4]
[311702030,1705338668059,-500.0,0.0003315,4]
[311702031,1705338668068,-885.32,0.0003315,4]
[311702032,1705338668078,-550.28,0.0003315,4]
[311702033,1705338668087,-500.0,0.0003315,4]
[311702034,1705338668096,-683.79,0.0003315,4]
[311702035,1705338668105,-612.86,0.0003315,4]
[311702036,1705338668115,-728.66,0.0003315,4]
[311702037,1705338668124,-500.0,0.0003315,4]
[311702038,1705338668133,-500.0,0.0003315,4]
[311702039,1705338668142,-500.0,0.0003315,4]
[311702040,1705338668152,-500.0,0.0003315,4]
[311702041,1705338668161,-500.0,0.0003315,4]
[311702042,1705338668170,-500.0,0.0003315,4]
[311702043,1705338668179,-500.0,0.0003315,4]
[311702044,1705338668188,-500.0,0.0003315,4]
[311702045,1705338668197,-1547.61981319,0.0003315,4]
[311702046,1705338668256,-350.14000034,0.0003315,4]
[311702047,1705338668268,-241.80018647,0.0003315,4]
[311702048,1705338668278,-500.0,0.0003315,4]
[311702049,1705338668287,-539.17,0.0003315,4]
[311702050,1705338668296,-500.0,0.0003315,4]
[311702051,1705338668305,-538.44,0.0003315,4]
[311702052,1705338668314,-519.82246991,0.0003315,4]
[311702053,1705338668323,-34.92799363,0.0003315,4]
[311702057,1705338871038,1350.0,0.00022,3]
[311702060,1705338948371,179.8191553,0.00022,2]
[311702082,1705339456751,280.49,0.0002072,2]
[311702084,1705339625157,200.0,0.00021984,2]
[311702085,1705339645408,2000.0,0.00021955,2]
[311702086,1705339738467,430.77,0.00021979,2]
[311702090,1705339770575,176.74,0.00021979,2]
[311702101,1705339832120,-155.0,0.0002237,2]
[311702102,1705339832130,-1799.77022583,0.00022371,10]
[311702103,1705339832139,-150.0,0.00022372,2]
[311702104,1705339832149,-266.2165356,0.00022372,2]
[311702105,1705339832158,-2683.59635043,0.00022373,2]
[311702106,1705339832170,-927.34,0.00022373,2]
[311702107,1705339832189,-6939.55139269,0.00022373,2]
[311702108,1705339832198,-216.48921933,0.0002239,2]
[311702109,1705339832207,-216.48921933,0.0002239,2]
[311702110,1705339832216,-216.48921933,0.0002239,2]
[311702111,1705339832225,-187.52383198,0.00022398,2]
[311702112,1705339832234,-4909.8837,0.00022499,2]
[311702113,1705339832243,-172.45,0.00022594,2]
[311702114,1705339832253,-175.33,0.0002264,2]
[311702115,1705339832263,-1485.17,0.0002264,2]
[311702116,1705339832272,-794.73,0.0002264,2]
[311702117,1705339832282,-171.08,0.0002264,2]
[311702118,1705339832291,-1000.0,0.00022669,2]
[311702119,1705339832301,-500.0,0.00022669,2]
[311702120,1705339832310,-250.0,0.00022703,2]
[311702121,1705339832320,-371.16884892,0.00022713,2]
[311702122,1705339832329,-617.16990183,0.00022713,2]
[311702123,1705339832339,-15150.41829742,0.00022789,2]
[311702124,1705339832349,-276182.1732,0.00022799,2]
[311702125,1705339832358,-151.49,0.00022813,2]
[311702126,1705339832368,-500.0,0.00022865,2]
[311702127,1705339832377,-150.99,0.00022865,2]
[311702128,1705339832386,-322.87,0.00022865,2]
[311702129,1705339832395,-158.5,0.00022891,2]
[311702130,1705339832404,-4035.38032242,0.00022896,2]
[311702131,1705339832414,-254.11,0.00022897,2]
[311702133,1705339832423,-42857.76227507,0.00022898,2]
[311702135,1705339832432,-262.96284194,0.00022898,2]
[311702137,1705339832441,-245.60144191,0.00022899,2]
[311702139,1705339832452,-301.77797199,0.00022899,2]
[311702141,1705339832462,-6045.52122712,0.00022899,2]
[311702143,1705339832473,-187.52383183,0.00022944,2]
[311702144,1705339832484,-151.49,0.00022945,2]
[311702145,1705339832494,-280.49,0.00022984,2]
[311702146,1705339832503,-158.5,0.00023012,2]
[311702147,1705339832513,-158.5,0.00023067,2]
[311702148,1705339832522,-151.49,0.00023077,2]
[311702149,1705339832534,-158.5,0.00023189,2]
[311702150,1705339832544,-151.49,0.00023209,2]
[311702151,1705339832554,-158.5,0.00023243,2]
[311702152,1705339832563,-151.49,0.00023342,2]
[311702153,1705339832574,-158.5,0.00023366,2]
[311702154,1705339832585,-158.5,0.0002342,2]
[311702155,1705339832594,-151.49,0.00023474,2]
[311702156,1705339832604,-187.52383183,0.0002349,2]
[311702157,1705339832615,-158.5,0.00023543,2]
[311702158,1705339832625,-158.5,0.00023596,2]
[311702159,1705339832636,-151.49,0.00023606,2]
[311702160,1705339832646,-175.33,0.00023618,2]
[311702161,1705339832656,-158.5,0.0002372,2]
[311702162,1705339832665,-151.49,0.00023738,2]
[311702163,1705339832675,-371.1688489,0.00023757,2]
[311702164,1705339832685,-158.5,0.00023772,2]
[311702165,1705339832694,-151.49,0.0002387,2]
[311702166,1705339832704,-158.5,0.00023897,2]
[311702167,1705339832714,-5360.1275,0.000239,2]
[311702168,1705339832724,-158.5,0.00023948,2]
[311702169,1705339832734,-1291.51109278,0.00024,3]
[311702170,1705339832747,-108.48890722,0.00024,3]
[311702171,1705339832757,-151.49,0.00024002,2]
[311702172,1705339832768,-187.52383183,0.00024037,2]
[311702173,1705339832779,-158.5,0.00024124,2]
[311702174,1705339832792,-158.5,0.000243,2]
[311702175,1705339832802,-158.5,0.00024476,2]
[311702176,1705339832812,-2.04366095,0.00024483,2]
[311702177,1705339832824,-727.70073905,0.00024483,2]
[311702178,1705339832833,-187.52383183,0.00024583,2]
[311702179,1705339832843,-175.33,0.00024597,2]
[311702180,1705339832852,-158.5,0.00024652,2]
[311702181,1705339832862,-250.0,0.00024658,2]
[311702182,1705339832873,-617.16990182,0.0002476,2]
[311702183,1705339832884,-371.1688489,0.000248,2]
[311702184,1705339832894,-158.5,0.00024828,2]
[311702185,1705339832904,-197.10559227,0.0002489,2]
[311702186,1705339832913,-479.2052,0.000249,2]
[311702187,1705339832923,-4058.89977795,0.000249,2]
[311702188,1705339832935,-266.99484686,0.000249,2]
[311702189,1705339832947,-2065.45835351,0.000249,2]
[311702190,1705339832960,-6009.02095026,0.000249,2]
[311702191,1705339833035,-415.03901403,0.000249,2]
[311702192,1705339833140,-26405.5181843,0.000249,2]
[311702193,1705339833152,-2055.44954774,0.000249,2]
[311702194,1705339833164,-1381.7786119,0.000249,2]
[311702195,1705339833188,-8529.59754327,0.000249,2]
[311702196,1705339833200,-2177.80725297,0.000249,2]
[311702197,1705339833220,-624.5058466,0.000249,2]
[311702207,1705339838374,-1000.0,0.00022699,2]
[311702208,1705339838384,-31131.33130933,0.000249,2]
[311702209,1705339838404,-871.4711906,0.000249,2]
[311702210,1705339838415,-62980.88852684,0.000249,2]
[311702211,1705339838440,-18202.50842697,0.000249,2]
[311702212,1705339838452,-18002.50000069,0.000249,2]
[311702213,1705339838477,-500.0,0.000249,2]
[311702214,1705339838488,-274.06673411,0.000249,2]
[311702216,1705339838499,-5000.0,0.000249,2]
[311702217,1705339838510,-613.02158694,0.000249,2]
[311702218,1705339838521,-358.48667185,0.000249,2]
[311702221,1705339838591,-4033.3474012,0.000249,2]
[311702222,1705339838603,-1203.88421311,0.000249,2]
[311702223,1705339838615,-5609.169647,0.000249,2]
[311702226,1705339840565,-479.90657014,0.000249,2]
[311702228,1705339841385,-263.755,0.000249,2]
[311702242,1705339843197,-441.62651912,0.000249,2]
[311702243,1705339843255,-14746.34780139,0.000249,2]
[311702244,1705339843267,-67216.90103275,0.000249,2]
[311702245,1705339843362,-960.767779,0.000249,2]
[311702246,1705339843373,-733.96190716,0.000249,2]
[311702247,1705339843385,-275.12973937,0.000249,2]
[311702266,1705339846158,-677.73828809,0.000249,2]
[311702269,1705339846170,-458.0,0.000249,2]
[311702274,1705339846274,-107115.02802495,0.000249,2]
[311702275,1705339846284,-152.50773218,0.00024904,2]
[311702276,1705339846296,-204.0,0.00024957,2]
[311702277,1705339846306,-505444.87458687,0.00025,2]
[311702278,1705339846316,-158.5,0.00025004,2]
[311702279,1705339846325,-187.52383183,0.00025129,2]
[311702280,1705339846335,-280.49,0.00025247,2]
[311702281,1705339846345,-256.71,0.000254,2]
[311702282,1705339846355,-256.71,0.00025537,2]
[311702283,1705339846365,-175.33,0.00025575,2]
[311702284,1705339846376,-150.82,0.0002564,2]
[311702285,1705339846386,-512.26,0.00025674,2]
[311702286,1705339846396,-187.52383183,0.00025675,2]
[311702287,1705339846406,-5000.0,0.00026,2]
[311702288,1705339846417,-1450.0,0.00026,3]
[311702289,1705339846427,-156.33,0.00026007,2]
[311702290,1705339846437,-150.0,0.00026079,2]
[311702291,1705339846447,-187.52383183,0.00026221,2]
[311702292,1705339846456,-204.0,0.00026359,4]
[311702294,1705339846466,-133391.49236596,0.000264,2]
[311702295,1705339846480,-2534.59999998,0.000264,2]
[311702296,1705339846501,-1292.29361381,0.000264,2]
[311702297,1705339846513,-3696.99961797,0.000264,2]
[311702300,1705339846549,-1889.52864729,0.000264,2]
[311702304,1705340369920,269.97,0.00021218,2]
[311702306,1705340549888,-175.14852125,0.00022203,2]
[311702307,1705340549910,-527.64290254,0.00022203,2]
[311702308,1705340549931,-155.0,0.00022204,2]
[311702309,1705340549951,-1142.20857621,0.00022204,10]
[311702310,1705340550940,-57.63824101,0.00022204,10]
[311702311,1705340550963,-1942.36175899,0.00022205,2]
[311702312,1705340551447,-1680.98488189,0.00022205,2]
[311702313,1705340551469,-212.72,0.00022211,2]
[311702314,1705340551492,-106.29511811,0.00022211,2]
[311702315,1705340552118,-68.91488189,0.00022211,2]
[311702316,1705340552138,-1259.11800912,0.00022244,2]
[311702317,1705340552159,-163.17,0.00022247,2]
[311702318,1705340552181,-151.3,0.00022378,2]
[311702319,1705340552203,-220.84955762,0.00022597,2]
[311702320,1705340552224,-136.64755137,0.00022597,2]
[311702322,1705340552670,-233.65438973,0.00022597,2]
[311702328,1705340584593,1000.0,0.00022596,2]
[311702330,1705340587391,766.34561027,0.00022597,2]
[311702331,1705340587413,455.61017849,0.00022597,2]
[311702338,1705340622886,999.87234768,0.00022598,10]
[311702339,1705340629600,370.30194109,0.00022597,2]
[311702340,1705340644698,174.21553274,0.00021957,2]
[311702341,1705340644719,29.78446726,0.00021957,2]
[311702343,1705340656394,291.71338211,0.00022597,2]
[311702344,1705340658540,155.40850613,0.00022597,2]
[311702345,1705340659141,532.55789459,0.00022597,2]
[311702346,1705340680242,990.53574991,0.00022,3]
[311702347,1705340680262,359.46425009,0.00022,3]
[311702348,1705340680737,155.0,0.00022597,2]
[311702350,1705340692008,1414.76052604,0.00022597,2]
[311702351,1705340705415,70.77522387,0.00022598,10]
[311702352,1705340705439,929.09712381,0.00022598,10]
[311702353,1705340716002,1070.90287619,0.00022597,2]
[311702354,1705340716033,929.09712381,0.00022597,2]
[311702355,1705340759894,370.30194109,0.00022597,2]
[311702356,1705340764319,210.0,0.00021957,2]
[311702357,1705340775920,490.6009351,0.00022598,10]
[311702358,1705340775940,30.33255804,0.00022598,10]
[311702359,1705340792888,1088.61842838,0.00022597,2]
[311702360,1705340793268,275.47,0.00021538,2]
[311702361,1705340793462,275.47,0.00022517,2]
[311702362,1705340809012,266.70360592,0.00022594,2]
[311702363,1705340810415,63.40540766,0.00020984,2]
[311702364,1705340810438,273.14459234,0.00020984,2]
[311702365,1705340819727,352.14,0.00021538,2]
[311702366,1705340829457,1000.0,0.00022596,2]
[311702367,1705340837363,374.71540766,0.00021538,2]
[311702368,1705340837384,148.01459234,0.00021538,2]
[311702369,1705340852428,520.93349314,0.00022598,10]
[311702370,1705340856129,229.97778117,0.00022599,2]
[311702371,1705340867715,155.25690599,0.00022597,2]
[311702372,1705340883422,370.30194109,0.00022597,2]
[311702373,1705340922926,520.93349314,0.00022598,10]
[311702374,1705340948011,54.58179313,0.00022596,2]
[311702375,1705340948033,2000.0,0.00022596,2]
[311702376,1705340948056,445.41820687,0.00022596,2]
[311702379,1705340994066,520.93349314,0.00022598,10]
[311702380,1705340996853,370.30194109,0.00022597,2]
[311702382,1705341004796,204.0,0.00022542,2]
[311702383,1705341023120,459.3463589,0.00022596,2]
[311702384,1705341023141,2000.0,0.00022596,2]
[311702385,1705341023164,2000.0,0.00022596,2]
[311702386,1705341023189,2000.0,0.00022596,2]
[311702387,1705341023211,2000.0,0.00022596,2]
[311702388,1705341023231,2000.0,0.00022596,2]
[311702396,1705341032585,-18816.5225411,0.00022596,2]
[311702399,1705341032594,-1437.9225,0.00022599,2]
[311702401,1705341032604,-232.92,0.00022599,2]
[311702403,1705341032613,-193.68462287,0.00022599,2]
[311702405,1705341032622,-445.87201303,0.00022599,2]
[311702407,1705341032631,-163.18,0.00022661,2]
[311702409,1705341032641,-570.27959187,0.00022687,2]
[311702411,1705341032650,-300.0,0.00022693,2]
[311702413,1705341032659,-150.0,0.00022693,2]
[311702415,1705341032668,-653.27583542,0.00022694,2]
[311702417,1705341032677,-258.77909786,0.00022694,2]
[311702419,1705341032687,-160.54104259,0.00022694,2]
[311702421,1705341032696,-2899.70304819,0.00022694,2]
[311702423,1705341032705,-520.93349314,0.00022695,10]
[311702425,1705341032715,-558147.40954014,0.00022696,2]
[311702427,1705341032724,-486.28507678,0.00022697,2]
[311702429,1705341032733,-300.07685153,0.00022697,2]
[311702431,1705341032743,-188.6809466,0.00022697,2]
[311702433,1705341032752,-155.92369904,0.00022697,2]
[311702435,1705341032761,-2399.31331131,0.00022697,2]
[311702436,1705341032770,-155.67723733,0.00022697,2]
[311702437,1705341032779,-156.58819109,0.00022697,2]
[311702438,1705341032788,-1248.20684203,0.00022697,2]
[311702439,1705341032798,-155.34434105,0.00022697,2]
[311702440,1705341032807,-278.63619624,0.00022697,2]
[311702441,1705341032816,-338.16719386,0.00022697,2]
[311702442,1705341032825,-4058.91226567,0.00022697,2]
[311702443,1705341032834,-155.0,0.00022697,2]
[311702444,1705341032843,-2606.43263937,0.00022697,2]
[311702445,1705341032852,-2014.07950634,0.00022697,2]
[311702446,1705341032862,-33336.08352019,0.00022697,2]
[311702447,1705341032871,-18606.30948209,0.00022698,2]
[311702448,1705341032880,-297.36,0.00022698,7]
[311702449,1705341032889,-6496.62,0.00022698,2]
[311702450,1705341032898,-3829.03,0.00022698,2]
[311702451,1705341032908,-422.19,0.00022698,2]
[311702452,1705341032916,-2725.11,0.00022698,2]
[311702453,1705341032925,-62980.8885,0.00022699,2]
[311702454,1705341032934,-999.99,0.00022699,2]
[311702455,1705341032944,-9999.99,0.00022699,2]
[311702456,1705341032954,-266.70360583,0.00022715,2]
[311702457,1705341032963,-266.70360583,0.00022837,2]
[311702458,1705341032972,-165.86,0.00022885,2]
[311702459,1705341032982,-266.70360583,0.00022958,2]
[311702460,1705341032991,-2000.0,0.00022984,2]
[311702461,1705341033000,-1000.0,0.00023,2]
[311702462,1705341033009,-266.70360583,0.00023079,2]
[311702463,1705341033020,-177.29,0.00023086,2]
[311702464,1705341033030,-224.71,0.00023103,2]
[311702465,1705341033040,-266.70360583,0.00023201,2]
[311702466,1705341033051,-336.55,0.00023248,2]
[311702467,1705341033062,-266.70360583,0.00023322,2]
[311702468,1705341033072,-159.51,0.00023334,2]
[311702469,1705341033081,-266.70360583,0.00023444,2]
[311702470,1705341033090,-275.47,0.00023495,2]
[311702471,1705341033099,-266.70360583,0.00023565,2]
[311702472,1705341033109,-266.70360583,0.00023686,2]
[311702473,1705341033118,-266.70360583,0.00023808,2]
[311702474,1705341033128,-352.1,0.000239,2]
[311702475,1705341033137,-266.70360583,0.00023929,2]
[311702476,1705341033146,-1000.0,0.00024,2]
[311702477,1705341033156,-1400.0,0.00024,3]
[311702478,1705341033166,-266.70360583,0.0002405,2]
[311702479,1705341033175,-165.86,0.00024077,2]
[311702480,1705341033183,-204.0,0.00024171,4]
[311702481,1705341033193,-266.70360583,0.00024172,2]
[311702482,1705341033202,-522.73,0.00024231,2]
[311702483,1705341033211,-266.70360583,0.00024293,2]
[311702484,1705341033220,-123761.0,0.00024404,2]
[311702485,1705341033229,-266.70360583,0.00024415,2]
[311702486,1705341033239,-275.47,0.00024474,2]
[311702487,1705341033248,-266.70360583,0.00024536,2]
[311702488,1705341033257,-161.16,0.00024587,2]
[311702489,1705341033267,-266.70360583,0.00024657,2]
[311702490,1705341033276,-250.0,0.00024658,2]
[311702491,1705341033286,-266.70360583,0.00024779,2]
[311702492,1705341033295,-19878.0226,0.000248,2]
[311702493,1705341033305,-196.68987756,0.000248,2]
[311702494,1705341033314,-406.86724757,0.00024896,2]
[311702495,1705341033325,-41498.2913,0.000249,2]
[311702496,1705341033335,-3580.2828,0.000249,2]
[311702497,1705341033344,-245000.0,0.000249,2]
[311702498,1705341033353,-266.70360583,0.000249,2]
[311702499,1705341033363,-163.0200917,0.000249,2]
[311702500,1705341033372,-214.26312492,0.000249,2]
[311702501,1705341033381,-180.39375868,0.000249,2]
[311702502,1705341033390,-210.0,0.00024962,2]
[311702503,1705341033402,-175.21,0.00024988,2]
[311702504,1705341033411,-570.27959187,0.00024989,2]
[311702505,1705341033420,-505444.87458687,0.00025,2]
[311702506,1705341033430,-1000.0,0.00025,2]
[311702507,1705341033439,-1000.0,0.0002508,2]
[311702508,1705341033448,-224.71,0.00025414,2]
[311702509,1705341033458,-275.47,0.00025452,2]
[311702510,1705341033467,-336.55,0.00025512,2]
[311702511,1705341033477,-712.29,0.00025678,2]
[311702512,1705341033486,-204.0,0.000258,7]
[311702513,1705341033495,-5000.0,0.00026,2]
[311702514,1705341033505,-1004.42863442,0.00026,2]
[311702515,1705341033515,-1450.0,0.00026,3]
[311702516,1705341033524,-732.25,0.00026052,2]
[311702517,1705341033534,-150.0,0.00026079,2]
[311702518,1705341033544,-1000.0,0.00026299,2]
[311702519,1705341033554,-1000.0,0.00026299,2]
[311702520,1705341033563,-1560.91254519,0.000263,2]
[311702521,1705341033572,-3494.0,0.000263,2]
[311702522,1705341033581,-716.58,0.00026399,2]
[311702523,1705341033591,-9156.27459341,0.00026399,2]
[311702524,1705341033600,-200.0,0.000264,2]
[311702525,1705341033614,-2000.0,0.000264,2]
[311702526,1705341033624,-34727.0,0.000264,2]
[311702527,1705341033634,-275.47,0.00026431,2]
[311702528,1705341033644,-3553.75,0.00026575,2]
[311702529,1705341033654,-1327.12853572,0.00026839,3]
[311702530,1705341033664,-341.56307129,0.00026839,3]
[311702531,1705341033673,-796.15431309,0.00026839,3]
[311702532,1705341033684,-222.32382602,0.00026839,3]
[311702533,1705341033693,-522.73,0.00026923,2]
[311702534,1705341033703,-1560.91254512,0.00026939,2]
[311702535,1705341033713,-413.86048498,0.00027,2]
[311702536,1705341033723,-250.0,0.00027397,2]
[311702537,1705341033732,-574.44476796,0.00027399,2]
[311702538,1705341033742,-257.65174878,0.000274,2]
[311702539,1705341033752,-275.47,0.00027409,2]
[311702540,1705341033761,-204.0,0.00027428,9]
[311702541,1705341033771,-1560.91254512,0.00027577,2]
[311702542,1705341033782,-175.21,0.00027764,2]
[311702543,1705341033792,-336.55,0.00027776,2]
[311702544,1705341033801,-1500.0,0.00028,3]
[311702545,1705341033810,-1560.91254512,0.00028216,2]
[311702546,1705341033820,-275.47,0.00028388,2]
[311702547,1705341033829,-1000.0,0.00028767,2]
[311702548,1705341033839,-1000.0,0.00028767,2]
[311702549,1705341033849,-1000.0,0.00028767,2]
[311702550,1705341033858,-1000.0,0.00028767,2]
[311702551,1705341033868,-1000.0,0.00028767,2]
[311702552,1705341033878,-1560.91254512,0.00028854,2]